[Event "Turkey IS Bank Super League 2017"]
[Site "Darica-Kocaeli"]
[Date "2017.07.29"]
[Round "4"]
[White "Gokerkan, Cem Kaan"]
[Black "Kesgin, Halit Kaan"]
[Result "1-0"]
[ECO "C07"]
[WhiteElo "2321"]
[BlackElo "2207"]
[Annotator "NA"]
[PlyCount "113"]
[EventType "team-tourn"]
[EventCountry "TUR"]
[SourceTitle "playchess.com"]
[Source "ChessBase"]
[SourceQuality "1"]
[TimeControl "40/5400+30:1800+30"]

1. e4 {[%emt 0:02:30]} e6 {[%emt 0:01:00]} 2. d4 {[%emt 0:00:00]} d5 {[%emt 0:00:30]} 3. Nd2 {[%emt 0:00:00]} c5 {[%emt 0:00:30]} 4. exd5 {[%emt 0:00:30]} Qxd5 {[%emt 0:00:00]} 5. Ngf3 {[%emt 0:00:30]} cxd4 {[%emt 0:01:00]} 6. Bc4 {[%emt 0:00:00]} Qd6 {[%emt 0:00:30]} 7. O-O {[%emt 0:00:00]} Nf6 {[%emt 0:00:00]} 8. Nb3 {[%emt 0:01:30]} Nc6 {[%emt 0:00:00]} 9. Nbxd4 {[%emt 0:02:30]} Nxd4 {[%emt 0:00:30]} 10. Nxd4 {[%emt 0:00:00]} a6 {[%emt 0:03:30]} 11. Re1 {[%emt 0:03:00]} Qc7 {[%emt 0:00:30]} 12. Qe2 {[%emt 0:00:30]} Bd6 {[%emt 0:07:30]} 13. Bg5 {[%emt 0:03:30] LiveBook: 62 Games} O-O {[%emt 0:03:30]} 14. h3 $11 {[%emt 0:14:30]} ({White should try} 14. Bxf6 $14 gxf6 15. Bd3) 14... b5 {[%emt 0:11:30]} 15. Bxf6 {[%emt 0:21:30]} gxf6 {[%emt 0:15:30]} 16. Bd3 {[%emt 0:00:30]} f5 {[%emt 0:05:30]} 17. Qh5 {[%emt 0:03:30]} Be5 {[%emt 0:10:30]} 18. Nf3 {[%emt 0:05:30]} Bxb2 {[%emt 0:03:30]} 19. Rab1 {[%emt 0:05:30]} Bg7 {[%emt 0:01:30]} 20. Rb4 {[%emt 0:01:30]} h6 {[%emt 0:06:30]} 21. g4 {[%emt 0:04:30]} fxg4 {[%emt 0:08:51]} 22. Rxg4 {[%emt 0:01:30]} f5 {[%emt 0:00:04]} 23. Qxh6 {[%emt 0:05:30]} Rd8 {[%emt 0:06:34]} 24. Rg6 {[%emt 0:03:30]} Kf8 {[%emt 0:03:31]} 25. Rf6+ {[%emt 0:04:56]} Kg8 {[%emt 0:00:33]} 26. Rg6 {[%emt 0:02:42]} Kf8 {[%emt 0:00:02]} 27. Qh7 {[%emt 0:02:58]} Qf7 {[%emt 0:01:33]} 28. Ng5 {[%emt 0:02:17]} Qg8 {[%emt 0:00:14]} 29. Qxg8+ {[%emt 0:05:55]} Kxg8 {[%emt 0:00:05]} 30. Nxe6 {[%emt 0:01:58]} Bxe6 {[%emt 0:00:30]} 31. Rexe6 {[%emt 0:00:02]} Kf7 {[%emt 0:01:27]} 32. Rxa6 {[%emt 0:00:20]} Rxa6 {[%emt 0:01:13]} 33. Rxa6 {[%emt 0:00:02]} b4 {[%emt 0:00:01]} 34. Ra7+ {[%emt 0:01:09]} Kf8 {[%emt 0:01:22]} 35. Ra5 {[%emt 0:00:18]} Bd4 {[%emt 0:00:27]} 36. Rxf5+ {[%emt 0:00:30]} Kg7 {[%emt 0:00:00]} 37. Kg2 {[%emt 0:00:17]} Ra8 {[%emt 0:00:00]} 38. Rf4 {[%emt 0:00:16]} Bc3 {[%emt 0:00:08]} 39. Bc4 {[%emt 0:00:22]} Rd8 {[%emt 0:00:11]} 40. Bd3 {[%emt 0:00:00]} Ra8 {[%emt 0:00:14]} 41. Bc4 {[%emt 0:04:28]} Rd8 {[%emt 0:00:30]} 42. Re4 {[%emt 0:02:30]} Kf6 {[%emt 0:00:30]} 43. Kg3 {[%emt 0:02:30]} Rd2 {[%emt 0:00:30]} 44. Bd3 {[%emt 0:00:30]} Rd1 {[%emt 0:00:30]} 45. f4 {[%emt 0:01:30]} Ra1 {[%emt 0:00:30]} 46. Bc4 {[%emt 0:00:30]} Kf5 {[%emt 0:00:30]} 47. Kf3 {[%emt 0:02:30]} Rc1 {[%emt 0:01:30]} 48. Bd3 {[%emt 0:00:30]} Kf6 {[%emt 0:00:30]} 49. Rc4 {[%emt 0:00:30]} Ra1 {[%emt 0:00:30]} 50. Rc6+ {[%emt 0:00:30]} Kg7 {[%emt 0:00:00]} 51. Rg6+ {[%emt 0:00:00]} Kf7 {[%emt 0:00:00]} 52. Ra6 {[%emt 0:00:00]} Kg7 {[%emt 0:00:30]} 53. f5 {[%emt 0:00:30]} Bf6 {[%emt 0:01:30]} 54. Rb6 {[%emt 0:02:30]} Bc3 {[%emt 0:00:30]} 55. Rg6+ {[%emt 0:00:00]} Kf8 {[%emt 0:00:00]} 56. Bc4 {[%emt 0:01:00]} Rc1 {[%emt 0:00:00]} 57. f6 {[%emt 0:00:00]} 1-0

[Event "Turkey IS Bank Super League 2017"]
[Site "Darica-Kocaeli"]
[Date "2017.07.29"]
[Round "4"]
[White "Akhsharumova, Anna M"]
[Black "Unuk, Laura"]
[Result "1-0"]
[ECO "C11"]
[WhiteElo "2310"]
[BlackElo "2343"]
[Annotator "NA"]
[PlyCount "61"]
[EventType "team-tourn"]
[EventCountry "TUR"]
[SourceTitle "playchess.com"]
[Source "ChessBase"]
[SourceQuality "1"]
[TimeControl "40/5400+30:1800+30"]

1. e4 {[%emt 0:00:30]} e6 {[%emt 0:02:00]} 2. d4 {[%emt 0:00:30]} d5 {[%emt 0:00:30]} 3. Nc3 {[%emt 0:00:00]} Nf6 {[%emt 0:00:00]} 4. e5 {[%emt 0:00:00]} Nfd7 {[%emt 0:00:00]} 5. f4 {[%emt 0:00:00]} c5 {[%emt 0:00:00] LiveBook: 6931 Games} 6. Nf3 {[%emt 0:00:00]} Be7 {[%emt 0:01:00]} 7. Be3 {[%emt 0:00:30]} b6 {[%emt 0:00:00]} 8. h4 {[%emt 0:00:30]} Nc6 {[%emt 0:03:00]} 9. h5 {[%emt 0:02:30]} f5 {[%emt 0:33:30]} 10. exf6 {[%emt 0:02:30]} Bxf6 $14 {[%emt 0:02:30]} 11. Qd2 {[%emt 0:09:30]} O-O {[%emt 0:07:30]} 12. O-O-O {[%emt 0:01:30]} c4 {[%emt 0:05:30]} 13. g4 {[%emt 0:05:30]} b5 {[%emt 0:00:30]} 14. h6 {[%emt 0:20:30]} g6 {[%emt 0:05:30]} 15. f5 {[%emt 0:03:30]} b4 {[%emt 0:00:30]} 16. Ne2 {[%emt 0:02:30]} Qa5 {[%emt 0:02:30]} 17. Kb1 {[%emt 0:02:30]} c3 {[%emt 0:08:30]} 18. Qe1 {[%emt 0:00:30]} Nb6 {[%emt 0:09:05]} 19. fxg6 {[%emt 0:06:30]} Nc4 {[%emt 0:01:16]} 20. gxh7+ {[%emt 0:01:30]} Kf7 {[%emt 0:03:31]} 21. Nc1 {[%emt 0:05:30]} Qa3 {[%emt 0:03:58]} 22. Nd3 {[%emt 0:09:30]} Nxb2 {[%emt 0:04:04]} 23. Bc1 {[%emt 0:01:30]} Ba6 {[%emt 0:04:05]} 24. Bxb2 {[%emt 0:03:30]} cxb2 {[%emt 0:00:08]} 25. Nde5+ {[%emt 0:03:40]} Bxe5 {[%emt 0:02:35]} 26. Nxe5+ {[%emt 0:00:30]} Nxe5 {[%emt 0:00:30]} 27. Qxe5 {[%emt 0:00:00]} b3 {[%emt 0:01:05]} 28. cxb3 {[%emt 0:00:15]} Rac8 {[%emt 0:00:35]} 29. Bxa6 {[%emt 0:00:27]} Qxa6 {[%emt 0:00:29]} 30. Qg7+ {[%emt 0:00:44]} Ke8 {[%emt 0:00:26]} 31. Qxf8+ {[%emt 0:00:20]} 1-0

[Event "Turkey IS Bank Super League 2017"]
[Site "Darica-Kocaeli"]
[Date "2017.07.29"]
[Round "4"]
[White "Agdelen, Huseyin Can"]
[Black "Agirsoy, Omer Faruk"]
[Result "0-1"]
[ECO "C88"]
[WhiteElo "2309"]
[BlackElo "1678"]
[Annotator "NA"]
[PlyCount "114"]
[EventType "team-tourn"]
[EventCountry "TUR"]
[SourceTitle "playchess.com"]
[Source "ChessBase"]
[SourceQuality "1"]
[TimeControl "40/5400+30:1800+30"]

1. e4 {[%emt 0:00:30]} e5 {[%emt 0:01:00]} 2. Nf3 {[%emt 0:00:30]} Nc6 {[%emt 0:00:30]} 3. Bb5 {[%emt 0:00:30]} a6 {[%emt 0:00:30]} 4. Ba4 {[%emt 0:00:30]} Nf6 {[%emt 0:00:00]} 5. O-O {[%emt 0:00:00]} Be7 {[%emt 0:00:00]} 6. Re1 {[%emt 0:02:00]} b5 {[%emt 0:00:30]} 7. Bb3 {[%emt 0:00:30]} O-O {[%emt 0:00:30]} 8. h3 {[%emt 0:00:00]} Bb7 {[%emt 0:00:30]} 9. d3 {[%emt 0:08:00]} d5 {[%emt 0:01:30]} 10. exd5 {[%emt 0:04:30]} Nxd5 {[%emt 0:00:00]} 11. Nxe5 {[%emt 0:04:30]} Nd4 {[%emt 0:07:00]} 12. Nc3 {[%emt 0:12:30] LiveBook: 39 Games} Nb4 $11 {[%emt 0:01:30]} 13. Ne2 {[%emt 0:11:30]} Nxb3 {[%emt 0:10:30]} 14. axb3 {[%emt 0:00:30]} Bd6 {[%emt 0:01:30]} 15. d4 {[%emt 0:37:39]} Bxe5 {[%emt 0:05:30]} 16. dxe5 {[%emt 0:00:30]} Qxd1 {[%emt 0:00:00]} 17. Rxd1 {[%emt 0:00:00]} Nxc2 {[%emt 0:00:00]} 18. Rb1 {[%emt 0:00:00]} Rfd8 {[%emt 0:38:30]} 19. Bg5 {[%emt 0:05:51]} Rd5 {[%emt 0:00:30]} 20. Rbc1 {[%emt 0:09:05]} Rxe5 {[%emt 0:00:30]} 21. Rxc2 {[%emt 0:00:04]} Rxg5 {[%emt 0:00:30]} 22. g4 {[%emt 0:00:21]} Bf3 {[%emt 0:04:30]} 23. Rd7 {[%emt 0:00:05]} h5 {[%emt 0:00:30]} 24. Ng3 {[%emt 0:01:12]} hxg4 {[%emt 0:03:30]} 25. Rcxc7 {[%emt 0:00:17]} Rf8 {[%emt 0:09:20]} 26. h4 {[%emt 0:00:26]} Rd5 {[%emt 0:00:16]} 27. Rxd5 {[%emt 0:01:25]} Bxd5 {[%emt 0:00:30]} 28. b4 {[%emt 0:00:00]} Re8 {[%emt 0:00:52]} 29. Nf5 {[%emt 0:00:23]} Re1+ {[%emt 0:02:20]} 30. Kh2 {[%emt 0:00:05]} Bf3 {[%emt 0:00:05]} 31. Kg3 {[%emt 0:01:24]} Re2 {[%emt 0:04:01]} 32. b3 {[%emt 0:00:09]} Rb2 {[%emt 0:00:00]} 33. Nd4 {[%emt 0:00:39]} Bd1 {[%emt 0:00:20]} 34. Ra7 {[%emt 0:00:25]} Rd2 {[%emt 0:00:31]} 35. Nf5 {[%emt 0:00:14]} Rd3+ {[%emt 0:02:02]} 36. Ne3 {[%emt 0:00:08]} Rxb3 {[%emt 0:00:25]} 37. Rxa6 {[%emt 0:00:30]} Bf3 {[%emt 0:00:00]} 38. Rb6 {[%emt 0:00:40]} Rxb4 {[%emt 0:00:00]} 39. Nc2 {[%emt 0:00:21]} Rc4 {[%emt 0:03:22]} 40. Ne3 {[%emt 0:00:00]} Rb4 {[%emt 0:00:56]} 41. h5 {[%emt 0:03:37]} Be2 {[%emt 0:07:30]} 42. Rb8+ {[%emt 0:01:30]} Kh7 {[%emt 0:00:30]} 43. Rb7 {[%emt 0:00:00]} f6 {[%emt 0:00:30]} 44. Rd7 {[%emt 0:06:00]} Kh6 {[%emt 0:06:30]} 45. Nf5+ {[%emt 0:03:30]} Kxh5 {[%emt 0:05:50]} 46. Rxg7 {[%emt 0:01:26]} Bd3 {[%emt 0:00:18]} 47. Ne3 {[%emt 0:04:06]} Bg6 {[%emt 0:01:19]} 48. f3 {[%emt 0:03:29]} gxf3 {[%emt 0:02:02]} 49. Kxf3 {[%emt 0:00:55]} Rd4 {[%emt 0:04:30]} 50. Rc7 {[%emt 0:07:01]} Be4+ {[%emt 0:00:43]} 51. Kg3 {[%emt 0:00:32]} b4 {[%emt 0:00:55]} 52. Rc5+ {[%emt 0:00:41]} Kg6 {[%emt 0:00:04]} 53. Rb5 {[%emt 0:00:00]} f5 {[%emt 0:01:17]} 54. Rb8 {[%emt 0:02:02]} Bd3 {[%emt 0:02:30]} 55. Kf3 {[%emt 0:01:05]} Be4+ {[%emt 0:01:52]} 56. Kg3 {[%emt 0:00:05]} Kf6 {[%emt 0:01:07]} 57. Rb5 {[%emt 0:00:35]} f4+ {[%emt 0:00:10]} 0-1

[Event "Turkey IS Bank Super League 2017"]
[Site "Darica-Kocaeli"]
[Date "2017.07.29"]
[Round "4"]
[White "Buyukasik, Diyap"]
[Black "Soysal, Serkan"]
[Result "1-0"]
[ECO "D02"]
[WhiteElo "2285"]
[BlackElo "2367"]
[Annotator "NA"]
[PlyCount "83"]
[EventType "team-tourn"]
[EventCountry "TUR"]
[SourceTitle "playchess.com"]
[Source "ChessBase"]
[SourceQuality "1"]
[TimeControl "40/5400+30:1800+30"]

1. Nf3 {[%emt 0:00:30]} d5 {[%emt 0:01:00]} 2. g3 {[%emt 0:00:30]} g6 {[%emt 0:00:30]} 3. Bg2 {[%emt 0:00:30]} Bg7 {[%emt 0:00:00]} 4. d4 {[%emt 0:00:30]} Nf6 {[%emt 0:00:00]} 5. O-O {[%emt 0:01:30]} O-O {[%emt 0:00:00]} 6. Bf4 {[%emt 0:01:30]} c5 {[%emt 0:04:00]} 7. dxc5 {[%emt 0:05:30]} Na6 {[%emt 0:01:30] LiveBook: 21 Games} 8. Qc1 {[%emt 0:07:30]} Nxc5 {[%emt 0:08:30]} 9. Be5 {[%emt 0:17:30]} b6 {[%emt 0:07:30]} 10. Rd1 $11 {[%emt 0:02:30]} Ba6 {[%emt 0:01:30]} 11. Nc3 {[%emt 0:00:30]} e6 {[%emt 0:01:30]} 12. Nd4 {[%emt 0:03:30]} Re8 {[%emt 0:48:30]} 13. Ndb5 {[%emt 0:03:30]} Nfe4 {[%emt 0:08:56]} 14. Bxg7 {[%emt 0:01:30]} Kxg7 {[%emt 0:00:31]} 15. Bxe4 {[%emt 0:25:30]} Nxe4 {[%emt 0:00:21]} 16. Qe3 {[%emt 0:06:48]} Nf6 {[%emt 0:00:36]} 17. Qe5 {[%emt 0:01:07]} Bxb5 {[%emt 0:07:52]} 18. Nxb5 {[%emt 0:00:41]} Re7 {[%emt 0:00:23]} 19. c4 {[%emt 0:06:21]} Rc8 {[%emt 0:03:31]} 20. g4 {[%emt 0:01:39]} h6 {[%emt 0:00:17]} 21. h4 {[%emt 0:00:00]} Rxc4 {[%emt 0:02:20]} 22. g5 {[%emt 0:00:56]} hxg5 {[%emt 0:00:43]} 23. hxg5 {[%emt 0:00:01]} Rg4+ {[%emt 0:00:59]} 24. Kf1 {[%emt 0:00:03]} Kg8 {[%emt 0:00:52]} 25. Qxf6 {[%emt 0:02:32]} Qd7 {[%emt 0:00:34]} 26. Rac1 {[%emt 0:00:58]} Rh4 {[%emt 0:00:32]} 27. Rc7 {[%emt 0:02:39]} Rh1+ {[%emt 0:00:30]} 28. Kg2 {[%emt 0:00:30]} Rxd1 {[%emt 0:00:00]} 29. Rxd7 {[%emt 0:00:00]} Rxd7 {[%emt 0:00:00]} 30. Nc7 {[%emt 0:00:58]} d4 {[%emt 0:01:05]} 31. Qe5 {[%emt 0:01:08]} d3 {[%emt 0:00:43]} 32. exd3 {[%emt 0:00:30]} R1xd3 {[%emt 0:00:30]} 33. Ne8 {[%emt 0:00:14]} Kf8 {[%emt 0:00:00]} 34. Nf6 {[%emt 0:00:46]} R7d6 {[%emt 0:00:31]} 35. Qb5 {[%emt 0:00:59]} Rd8 {[%emt 0:00:01]} 36. Qa6 {[%emt 0:01:28]} Rd2 {[%emt 0:00:01]} 37. b3 {[%emt 0:00:35]} b5 {[%emt 0:01:11]} 38. Qxa7 {[%emt 0:00:30]} b4 {[%emt 0:00:00]} 39. Qc5+ {[%emt 0:00:15]} Kg7 {[%emt 0:00:00]} 40. Qxb4 {[%emt 0:00:00]} Rxa2 {[%emt 0:01:01]} 41. Qc3 {[%emt 0:02:22]} Kf8 {[%emt 0:00:30]} 42. b4 {[%emt 0:00:30]} 1-0

[Event "Turkey IS Bank Super League 2017"]
[Site "Darica-Kocaeli"]
[Date "2017.07.29"]
[Round "4"]
[White "Burcu, Cagatay"]
[Black "Gundogan, Cem"]
[Result "1-0"]
[ECO "E11"]
[WhiteElo "2268"]
[BlackElo "2062"]
[Annotator "NA"]
[PlyCount "117"]
[EventType "team-tourn"]
[EventCountry "TUR"]
[SourceTitle "playchess.com"]
[Source "ChessBase"]
[SourceQuality "1"]
[TimeControl "40/5400+30:1800+30"]

1. d4 {[%emt 0:00:30]} e6 {[%emt 0:01:00]} 2. c4 {[%emt 0:01:30]} Bb4+ {[%emt 0:00:30]} 3. Nd2 {[%emt 0:01:30]} Nf6 {[%emt 0:12:30]} 4. Ngf3 {[%emt 0:00:00]} O-O {[%emt 0:00:30]} 5. a3 {[%emt 0:00:00]} Bxd2+ {[%emt 0:00:30]} 6. Bxd2 {[%emt 0:00:30]} Ne4 {[%emt 0:06:30]} 7. g3 {[%emt 0:05:30]} d6 $14 {[%emt 0:19:30] LiveBook: 21 Games} 8. Bg2 {[%emt 0:09:30]} Qe7 {[%emt 0:02:30]} 9. O-O {[%emt 0:07:30]} e5 {[%emt 0:23:30]} 10. Be3 {[%emt 0:07:30]} f5 {[%emt 0:02:30]} 11. dxe5 {[%emt 0:13:30]} dxe5 {[%emt 0:02:30]} 12. Qd5+ {[%emt 0:02:30]} Be6 {[%emt 0:00:30]} 13. Qxe5 {[%emt 0:05:30]} Nc6 {[%emt 0:06:00]} 14. Qb5 {[%emt 0:02:30]} a6 {[%emt 0:14:47]} 15. Qxb7 {[%emt 0:15:30]} Na5 {[%emt 0:01:07]} 16. Qb4 {[%emt 0:00:00]} Qxb4 {[%emt 0:00:24]} 17. axb4 {[%emt 0:00:00]} Nxc4 {[%emt 0:00:32]} 18. Bd4 {[%emt 0:02:30]} Rfb8 {[%emt 0:02:53]} 19. Bc3 {[%emt 0:00:30]} a5 {[%emt 0:00:56]} 20. bxa5 {[%emt 0:03:30]} Nxc3 {[%emt 0:00:53]} 21. bxc3 {[%emt 0:00:30]} Rxa5 {[%emt 0:00:25]} 22. Rxa5 {[%emt 0:00:30]} Nxa5 {[%emt 0:00:30]} 23. Nd4 {[%emt 0:00:00]} Bc4 {[%emt 0:00:32]} 24. Ra1 {[%emt 0:00:00]} Nb3 {[%emt 0:00:13]} 25. Rb1 {[%emt 0:00:30]} Rb6 {[%emt 0:00:46]} 26. Nxf5 {[%emt 0:00:30]} Kf8 {[%emt 0:00:22]} 27. Bf1 {[%emt 0:03:05]} Ra6 {[%emt 0:00:39]} 28. Ne3 {[%emt 0:05:36]} Be6 {[%emt 0:00:03]} 29. Bg2 {[%emt 0:00:02]} Ra3 {[%emt 0:00:56]} 30. Bd5 {[%emt 0:01:20]} Bxd5 {[%emt 0:00:44]} 31. Nxd5 {[%emt 0:00:30]} c6 {[%emt 0:00:00]} 32. Ne3 {[%emt 0:01:03]} Nd2 {[%emt 0:00:00]} 33. Rb2 {[%emt 0:01:47]} Ne4 {[%emt 0:00:42]} 34. c4 {[%emt 0:00:07]} Ke7 {[%emt 0:01:03]} 35. Rb7+ {[%emt 0:03:14]} Kf6 {[%emt 0:00:59]} 36. Rb6 {[%emt 0:00:30]} Ra2 {[%emt 0:00:00]} 37. Rxc6+ {[%emt 0:03:15]} Kf7 {[%emt 0:00:31]} 38. Kg2 {[%emt 0:04:04]} Nc3 {[%emt 0:00:18]} 39. Rc7+ {[%emt 0:01:02]} Kf6 {[%emt 0:00:42]} 40. Nd5+ {[%emt 0:00:57]} Nxd5 {[%emt 0:30:30]} 41. cxd5 {[%emt 0:30:30]} Rxe2 {[%emt 0:00:00]} 42. h4 {[%emt 0:00:00]} Rd2 {[%emt 0:00:00]} 43. Rd7 {[%emt 0:00:00]} h5 {[%emt 0:00:00]} 44. Kf3 {[%emt 0:00:00]} Rd1 {[%emt 0:00:00]} 45. d6 {[%emt 0:00:00]} Rd5 {[%emt 0:00:00]} 46. Rd8 {[%emt 0:00:00]} Ke6 {[%emt 0:00:00]} 47. Kg2 {[%emt 0:00:00]} Rd1 {[%emt 0:00:00]} 48. d7 {[%emt 0:00:00]} Rd5 {[%emt 0:00:00]} 49. Re8+ {[%emt 0:00:00]} Kxd7 {[%emt 0:00:00]} 50. Rg8 {[%emt 0:00:00]} Ke6 {[%emt 0:00:00]} 51. Rxg7 {[%emt 0:00:00]} Kf6 {[%emt 0:00:04]} 52. Rg8 {[%emt 0:00:00]} Ra5 {[%emt 0:00:00]} 53. Rg5 {[%emt 0:02:44]} Rxg5 {[%emt 0:00:00]} 54. hxg5+ {[%emt 0:00:30]} Kxg5 {[%emt 0:00:25]} 55. Kh3 {[%emt 0:00:00]} Kg6 {[%emt 0:02:13]} 56. Kh4 {[%emt 0:00:00]} Kh6 {[%emt 0:00:30]} 57. f3 {[%emt 0:00:00]} Kg6 {[%emt 0:00:58]} 58. f4 {[%emt 0:00:00]} Kh6 {[%emt 0:01:10]} 59. f5 {[%emt 0:00:00]} 1-0

[Event "Turkey IS Bank Super League 2017"]
[Site "Darica-Kocaeli"]
[Date "2017.07.29"]
[Round "4"]
[White "Apaydin, Fethi"]
[Black "Yelken, Mustafa"]
[Result "1-0"]
[ECO "D01"]
[WhiteElo "2258"]
[BlackElo "2171"]
[Annotator "NA"]
[PlyCount "130"]
[EventType "team-tourn"]
[EventCountry "TUR"]
[SourceTitle "playchess.com"]
[Source "ChessBase"]
[SourceQuality "1"]
[TimeControl "40/5400+30:1800+30"]

1. d4 {[%emt 0:00:30]} Nf6 {[%emt 0:02:00]} 2. Bg5 {[%emt 0:00:30]} d5 {[%emt 0:01:30]} 3. Nc3 {[%emt 0:03:30]} Nbd7 {[%emt 0:01:30]} 4. Qd3 {[%emt 0:02:30]} c5 {[%emt 0:01:30]} 5. O-O-O {[%emt 0:06:30]} c4 {[%emt 0:02:30]} 6. Qg3 {[%emt 0:23:30]} Qa5 $11 {[%emt 0:01:30]} 7. e4 {[%emt 0:02:30]} b5 {[%emt 0:06:30]} 8. e5 {[%emt 0:06:30]} b4 {[%emt 0:03:30]} 9. exf6 {[%emt 0:04:30]} gxf6 {[%emt 0:00:00]} 10. Nxd5 {[%emt 0:21:30]} Qxd5 {[%emt 0:04:00]} 11. Be3 {[%emt 0:00:00]} Nb6 {[%emt 0:16:30]} 12. Qf3 {[%emt 0:08:42]} Bb7 {[%emt 0:07:30]} 13. Qxd5 {[%emt 0:00:29]} Nxd5 {[%emt 0:02:30]} 14. Nh3 {[%emt 0:06:35]} e6 {[%emt 0:05:30]} 15. Nf4 {[%emt 0:03:50]} Bd6 {[%emt 0:00:30]} 16. Nh5 {[%emt 0:00:32]} Ke7 {[%emt 0:02:30]} 17. Re1 {[%emt 0:02:51]} Rhg8 {[%emt 0:04:30]} 18. Ng3 {[%emt 0:01:13]} Rac8 {[%emt 0:03:30]} 19. Kb1 {[%emt 0:00:52]} f5 {[%emt 0:01:30]} 20. Bc1 {[%emt 0:00:29]} Kd7 {[%emt 0:00:30]} 21. Be2 {[%emt 0:01:38]} Nf6 {[%emt 0:03:30]} 22. Bf3 {[%emt 0:00:25]} Bxf3 {[%emt 0:00:30]} 23. gxf3 {[%emt 0:00:02]} Nd5 {[%emt 0:00:30]} 24. Bd2 {[%emt 0:01:38]} Rg6 {[%emt 0:00:30]} 25. c3 {[%emt 0:00:16]} bxc3 {[%emt 0:01:30]} 26. bxc3 {[%emt 0:00:03]} Rh8 {[%emt 0:00:30]} 27. Kc2 {[%emt 0:00:51]} h5 {[%emt 0:00:30]} 28. Kd1 {[%emt 0:01:30]} h4 {[%emt 0:00:30]} 29. Nf1 {[%emt 0:00:00]} Rg2 {[%emt 0:02:30]} 30. Ke2 {[%emt 0:00:00]} Rb8 {[%emt 0:00:30]} 31. Ne3 {[%emt 0:00:53]} Nxe3 {[%emt 0:00:30]} 32. Kxe3 {[%emt 0:00:05]} Rb2 {[%emt 0:03:30]} 33. h3 {[%emt 0:00:28]} Rxa2 {[%emt 0:04:54]} 34. Ra1 {[%emt 0:00:05]} Rxa1 {[%emt 0:02:28]} 35. Rxa1 {[%emt 0:00:04]} Bb8 {[%emt 0:00:27]} 36. Rb1 {[%emt 0:00:04]} Bc7 {[%emt 0:00:53]} 37. Rb7 {[%emt 0:01:02]} a5 {[%emt 0:00:13]} 38. Ke2 {[%emt 0:00:19]} Kc6 {[%emt 0:00:16]} 39. Ra7 {[%emt 0:00:05]} Rg8 {[%emt 0:00:51]} 40. d5+ {[%emt 0:01:22]} exd5 {[%emt 0:00:58]} 41. Ra6+ {[%emt 0:03:07]} Kb7 {[%emt 0:11:30]} 42. Rf6 {[%emt 0:11:29]} a4 {[%emt 0:00:30]} 43. Bc1 {[%emt 0:00:52]} Rg1 {[%emt 0:00:30]} 44. Ba3 {[%emt 0:00:30]} Ra1 {[%emt 0:00:30]} 45. Bd6 {[%emt 0:00:00]} a3 {[%emt 0:08:30]} 46. Rxf7 {[%emt 0:08:10]} a2 {[%emt 0:00:00]} 47. Bxc7 {[%emt 0:03:20]} Rb1 {[%emt 0:01:00]} 48. Be5+ {[%emt 0:01:35]} Kc6 {[%emt 0:00:30]} 49. Ra7 {[%emt 0:03:00]} a1=Q {[%emt 0:00:30]} 50. Rxa1 {[%emt 0:00:30]} Rxa1 {[%emt 0:00:00]} 51. Bf6 {[%emt 0:00:00]} Rh1 {[%emt 0:00:00]} 52. Bxh4 {[%emt 0:00:04]} Rxh3 {[%emt 0:00:30]} 53. Bf6 {[%emt 0:00:31]} Rh6 {[%emt 0:00:30]} 54. Bd4 {[%emt 0:01:53]} Re6+ {[%emt 0:00:30]} 55. Kd2 {[%emt 0:00:30]} Kb5 {[%emt 0:00:00]} 56. f4 {[%emt 0:00:04]} Rh6 {[%emt 0:00:00]} 57. Kc2 {[%emt 0:03:46]} Rh3 {[%emt 0:00:30]} 58. Be3 {[%emt 0:00:30]} Ka4 {[%emt 0:00:00]} 59. Kb2 {[%emt 0:00:18]} Rh1 {[%emt 0:00:00]} 60. Kc2 {[%emt 0:01:03]} Ka3 {[%emt 0:00:30]} 61. Bc5+ {[%emt 0:00:18]} Ka2 {[%emt 0:00:00]} 62. Be3 {[%emt 0:00:32]} Rb1 {[%emt 0:00:00]} 63. Bc1 {[%emt 0:01:00]} Rxc1+ {[%emt 0:00:30]} 64. Kxc1 {[%emt 0:00:30]} Kb3 {[%emt 0:00:00]} 65. Kd2 {[%emt 0:00:00]} Kb2 {[%emt 0:00:00]} 1-0

[Event "Turkey IS Bank Super League 2017"]
[Site "Darica-Kocaeli"]
[Date "2017.07.29"]
[Round "4"]
[White "Isgandarova, Khayala"]
[Black "Kose, Ulya"]
[Result "1-0"]
[ECO "B42"]
[WhiteElo "2257"]
[BlackElo "1591"]
[Annotator "NA"]
[PlyCount "49"]
[EventType "team-tourn"]
[EventCountry "TUR"]
[SourceTitle "playchess.com"]
[Source "ChessBase"]
[SourceQuality "1"]
[TimeControl "40/5400+30:1800+30"]

1. e4 {[%emt 0:00:30]} c5 {[%emt 0:02:00]} 2. Nf3 {[%emt 0:00:30]} e6 {[%emt 0:00:00]} 3. d4 {[%emt 0:00:00]} cxd4 {[%emt 0:00:00]} 4. Nxd4 {[%emt 0:00:00]} a6 {[%emt 0:00:30]} 5. Bd3 {[%emt 0:00:30]} Nc6 {[%emt 0:01:30]} 6. Nxc6 {[%emt 0:01:30]} dxc6 {[%emt 0:00:30]} 7. O-O {[%emt 0:00:30]} e5 {[%emt 0:02:30]} 8. a4 {[%emt 0:01:30]} a5 {[%emt 0:05:30]} 9. Nd2 {[%emt 0:01:30]} Nf6 {[%emt 0:04:30]} 10. Nc4 {[%emt 0:03:30]} Qc7 {[%emt 0:06:30]} 11. Be3 {[%emt 0:02:30]} Nd7 $16 {[%emt 0:04:30]} 12. f4 {[%emt 0:13:30]} b5 {[%emt 0:18:30]} 13. axb5 {[%emt 0:07:30]} cxb5 {[%emt 0:03:30]} 14. Nxe5 {[%emt 0:00:30]} Nxe5 {[%emt 0:06:30]} 15. fxe5 {[%emt 0:00:30]} Qxe5 {[%emt 0:02:30]} 16. Kh1 {[%emt 0:00:30]} Bd7 {[%emt 0:02:30]} 17. Qf3 {[%emt 0:01:30]} f6 {[%emt 0:07:30]} 18. Bf4 {[%emt 0:01:30]} Qxb2 {[%emt 0:05:30]} 19. e5 {[%emt 0:01:30]} Rc8 {[%emt 0:04:30]} 20. exf6 {[%emt 0:07:30]} gxf6 {[%emt 0:12:14]} 21. Rae1+ {[%emt 0:01:30]} Kd8 {[%emt 0:02:18]} 22. Qd5 {[%emt 0:00:30]} Rc5 {[%emt 0:03:15]} 23. Qa8+ {[%emt 0:00:30]} Bc8 {[%emt 0:01:09]} 24. Qxa5+ {[%emt 0:00:30]} Kd7 {[%emt 0:00:50]} 25. Qa7+ {[%emt 0:00:00]} 1-0